[Event "*** Titled Tuesday Blitz"]
[Site "Chess.com"]
[Date "2018.04.03"]
[Round "4"]
[White "1977Ivan"]
[Black "vovachesss"]
[Result "1-0"]
[WhiteElo "2424"]
[BlackElo "2419"]
[TimeControl "180+2"]
[EndTime "13:50:48 PDT"]
[Termination "1977Ivan won by checkmate"]

1. e4 {[%clk 0:03:01.9]} 1... e5 {[%clk 0:02:58.2]} 2. Nf3 {[%clk 0:03:02.2]}
2... d5 {[%clk 0:02:59.2]} 3. exd5 {[%clk 0:02:56.9]} 3... e4 {[%clk 0:03:00.4]}
4. Qe2 {[%clk 0:02:57.1]} 4... Nf6 {[%clk 0:03:01.7]} 5. d3 {[%clk 0:02:57.5]}
5... Qxd5 {[%clk 0:03:02.5]} 6. Nfd2 {[%clk 0:02:56]} 6... Nc6 {[%clk
0:02:58.3]} 7. Nxe4 {[%clk 0:02:53.3]} 7... Be6 {[%clk 0:02:58.5]} 8. Nbc3
{[%clk 0:02:52.7]} 8... Qd7 {[%clk 0:02:47.7]} 9. Be3 {[%clk 0:02:38.4]} 9...
Nd5 {[%clk 0:02:45.9]} 10. Nxd5 {[%clk 0:02:36.6]} 10... Qxd5 {[%clk 0:02:47.8]}
11. Nc3 {[%clk 0:02:37.4]} 11... Qa5 {[%clk 0:02:46.1]} 12. Qd2 {[%clk
0:02:33.3]} 12... Bb4 {[%clk 0:02:46.3]} 13. Be2 {[%clk 0:02:33.5]} 13... O-O-O
{[%clk 0:02:37.5]} 14. O-O {[%clk 0:02:34.2]} 14... Nd4 {[%clk 0:02:38.4]} 15.
Bxd4 {[%clk 0:02:27.8]} 15... Rxd4 {[%clk 0:02:40.3]} 16. a3 {[%clk 0:02:29.2]}
16... Bd6 {[%clk 0:02:39.2]} 17. Rfe1 {[%clk 0:02:22.2]} 17... h5 {[%clk
0:01:42.3]} 18. Bf3 {[%clk 0:02:18.8]} 18... Bf4 {[%clk 0:01:24.8]} 19. Qe2
{[%clk 0:02:16]} 19... h4 {[%clk 0:01:24.8]} 20. Ne4 {[%clk 0:02:13.1]} 20...
Kb8 {[%clk 0:01:11.5]} 21. b4 {[%clk 0:02:13]} 21... Qe5 {[%clk 0:00:38]} 22. h3
{[%clk 0:02:13.4]} 22... b6 {[%clk 0:00:34.2]} 23. c3 {[%clk 0:02:11]} 23...
Rdd8 {[%clk 0:00:32.5]} 24. d4 {[%clk 0:02:11.9]} 24... Qf5 {[%clk 0:00:30]} 25.
Rab1 {[%clk 0:02:05.8]} 25... Qg6 {[%clk 0:00:28.4]} 26. Kh1 {[%clk 0:02:01.1]}
26... Bf5 {[%clk 0:00:28.5]} 27. Qa6 {[%clk 0:01:44.4]} 27... Bc8 {[%clk
0:00:21.3]} 28. Qa4 {[%clk 0:01:43]} 28... Bb7 {[%clk 0:00:21.9]} 29. Qd1 {[%clk
0:01:23.8]} 29... Rhe8 {[%clk 0:00:20.5]} 30. Qd3 {[%clk 0:01:20.6]} 30... Re7
{[%clk 0:00:19]} 31. Re2 {[%clk 0:01:21.5]} 31... Rde8 {[%clk 0:00:19.9]} 32.
Rbe1 {[%clk 0:01:22.1]} 32... f5 {[%clk 0:00:11.8]} 33. Nd2 {[%clk 0:01:21.1]}
33... Rxe2 {[%clk 0:00:09.1]} 34. Rxe2 {[%clk 0:01:21.1]} 34... Rxe2 {[%clk
0:00:09.4]} 35. Qxe2 {[%clk 0:01:21.7]} 35... Bxd2 {[%clk 0:00:10.1]} 36. Bxb7
{[%clk 0:01:05.6]} 36... Bxc3 {[%clk 0:00:10.8]} 37. Ba6 {[%clk 0:01:05.5]}
37... Qc6 {[%clk 0:00:03.2]} 38. Qe7 {[%clk 0:01:02]} 38... Bxd4 {[%clk
0:00:02.9]} 39. Qd8# {[%clk 0:01:01.6]} 1-0

[Event "*** Titled Tuesday Blitz"]
[Site "Chess.com"]
[Date "2018.04.03"]
[Round "4"]
[White "bascheyaro"]
[Black "MITerryble"]
[Result "0-1"]
[WhiteElo "2609"]
[BlackElo "2658"]
[TimeControl "180+2"]
[EndTime "13:50:51 PDT"]
[Termination "MITerryble won by resignation"]

1. d4 {[%clk 0:03:01.9]} 1... e6 {[%clk 0:03:00.8]} 2. Nf3 {[%clk 0:03:03]} 2...
Nf6 {[%clk 0:03:01.9]} 3. Bf4 {[%clk 0:03:03.9]} 3... b6 {[%clk 0:03:02.5]} 4.
e3 {[%clk 0:03:05.4]} 4... Bb7 {[%clk 0:03:03.7]} 5. Nbd2 {[%clk 0:03:05.7]}
5... Bd6 {[%clk 0:03:05]} 6. Bg3 {[%clk 0:03:06.2]} 6... O-O {[%clk 0:03:05.4]}
7. Bd3 {[%clk 0:03:07.5]} 7... Nh5 {[%clk 0:02:58.8]} 8. Bh4 {[%clk 0:02:55.6]}
8... Be7 {[%clk 0:02:56.2]} 9. Ne5 {[%clk 0:02:25.1]} 9... Bxh4 {[%clk
0:02:52.8]} 10. Qxh5 {[%clk 0:02:25.4]} 10... g6 {[%clk 0:02:53.9]} 11. Qe2
{[%clk 0:02:26.3]} 11... c5 {[%clk 0:02:36.4]} 12. Be4 {[%clk 0:02:25]} 12... d5
{[%clk 0:02:34.3]} 13. Bf3 {[%clk 0:02:21.9]} 13... Bf6 {[%clk 0:02:24.3]} 14.
h4 {[%clk 0:02:21.8]} 14... Bxe5 {[%clk 0:02:23.6]} 15. dxe5 {[%clk 0:02:22.7]}
15... Nd7 {[%clk 0:02:23.4]} 16. h5 {[%clk 0:02:23.3]} 16... Nxe5 {[%clk
0:02:24.5]} 17. hxg6 {[%clk 0:02:24.8]} 17... hxg6 {[%clk 0:02:26.3]} 18. O-O-O
{[%clk 0:02:25.9]} 18... Qf6 {[%clk 0:02:22.8]} 19. e4 {[%clk 0:02:06.1]} 19...
Rfe8 {[%clk 0:02:15.4]} 20. Rh3 {[%clk 0:02:05]} 20... d4 {[%clk 0:02:08.8]} 21.
Rdh1 {[%clk 0:02:05.8]} 21... Kf8 {[%clk 0:02:07.7]} 22. Nc4 {[%clk 0:02:01.5]}
22... Qf4+ {[%clk 0:01:48.8]} 23. Nd2 {[%clk 0:01:42.5]} 23... Rad8 {[%clk
0:01:49.4]} 24. g3 {[%clk 0:01:42.3]} 24... Qf6 {[%clk 0:01:47.3]} 25. Bg2
{[%clk 0:01:42.9]} 25... d3 {[%clk 0:01:48.3]} 26. Qe3 {[%clk 0:01:43.5]} 26...
dxc2 {[%clk 0:01:49]} 27. Kxc2 {[%clk 0:01:43.3]} 27... Ng4 {[%clk 0:01:30]} 28.
Qe2 {[%clk 0:01:33.4]} 28... Qxf2 {[%clk 0:01:24.6]} 29. Rh8+ {[%clk 0:01:33.5]}
29... Ke7 {[%clk 0:01:25.6]} 30. Rxe8+ {[%clk 0:01:33.4]} 30... Kxe8 {[%clk
0:01:24.2]} 31. Qxf2 {[%clk 0:01:19.8]} 31... Nxf2 {[%clk 0:01:23.9]} 32. Re1
{[%clk 0:01:16.4]} 32... Nd3 {[%clk 0:01:20.9]} 33. Re3 {[%clk 0:01:17.3]} 33...
Nb4+ {[%clk 0:01:20.5]} 34. Kd1 {[%clk 0:01:18.7]} 34... Ke7 {[%clk 0:01:05.6]}
35. a3 {[%clk 0:01:19.7]} 35... Nd3 {[%clk 0:01:06.5]} 36. Kc2 {[%clk
0:01:21.1]} 36... Nxb2 {[%clk 0:01:00.5]} 37. Bf1 {[%clk 0:01:16.1]} 37... Bc6
{[%clk 0:01:01.4]} 38. Be2 {[%clk 0:01:10.2]} 38... b5 {[%clk 0:00:40]} 39. Nb3
{[%clk 0:01:08.9]} 39... Na4 {[%clk 0:00:40.2]} 40. Na5 {[%clk 0:01:09.5]} 40...
Be8 {[%clk 0:00:41.3]} 41. e5 {[%clk 0:01:09.8]} 41... c4 {[%clk 0:00:39.8]} 42.
Bf3 {[%clk 0:01:09.3]} 42... Nc5 {[%clk 0:00:39.7]} 43. Bc6 {[%clk 0:01:09.4]}
43... Rd3 {[%clk 0:00:39.1]} 44. Rxd3 {[%clk 0:01:07.7]} 44... Nxd3 {[%clk
0:00:37.6]} 45. a4 {[%clk 0:01:06.6]} 45... Nb4+ {[%clk 0:00:36.4]} 0-1

[Event "*** Titled Tuesday Blitz"]
[Site "Chess.com"]
[Date "2018.04.03"]
[Round "4"]
[White "RandomOracle"]
[Black "codapbg94"]
[Result "1-0"]
[WhiteElo "2158"]
[BlackElo "2046"]
[TimeControl "180+2"]
[EndTime "13:50:57 PDT"]
[Termination "RandomOracle won by resignation"]

1. c4 {[%clk 0:03:00.9]} 1... Nf6 {[%clk 0:02:59.8]} 2. g3 {[%clk 0:03:00.7]}
2... g6 {[%clk 0:02:56.7]} 3. Bg2 {[%clk 0:03:01.4]} 3... Bg7 {[%clk 0:02:55.9]}
4. Nc3 {[%clk 0:03:02]} 4... d6 {[%clk 0:02:56.2]} 5. d4 {[%clk 0:03:01.2]} 5...
O-O {[%clk 0:02:56.9]} 6. Nf3 {[%clk 0:03:02]} 6... Nc6 {[%clk 0:02:55.2]} 7.
O-O {[%clk 0:03:00.5]} 7... Bg4 {[%clk 0:02:55.4]} 8. Qd3 {[%clk 0:02:41.6]}
8... Nd7 {[%clk 0:02:28.8]} 9. e3 {[%clk 0:02:34.8]} 9... e5 {[%clk 0:02:14.5]}
10. d5 {[%clk 0:02:31.7]} 10... Ne7 {[%clk 0:02:00.7]} 11. h3 {[%clk 0:02:25.5]}
11... Bxf3 {[%clk 0:01:55.4]} 12. Bxf3 {[%clk 0:02:26.3]} 12... f5 {[%clk
0:01:56.7]} 13. e4 {[%clk 0:02:20.2]} 13... f4 {[%clk 0:01:49.9]} 14. b4 {[%clk
0:02:00.2]} 14... a5 {[%clk 0:01:48.3]} 15. Ba3 {[%clk 0:02:00.9]} 15... axb4
{[%clk 0:01:37.7]} 16. Bxb4 {[%clk 0:02:01.8]} 16... b6 {[%clk 0:01:39.6]} 17.
a4 {[%clk 0:02:02.1]} 17... fxg3 {[%clk 0:01:39.8]} 18. fxg3 {[%clk 0:02:02.8]}
18... Nc5 {[%clk 0:01:40.5]} 19. Qe2 {[%clk 0:01:52.4]} 19... Nb3 {[%clk
0:01:35.3]} 20. Ra3 {[%clk 0:01:51.9]} 20... Nd4 {[%clk 0:01:35.5]} 21. Qd1
{[%clk 0:01:49.1]} 21... Bh6 {[%clk 0:01:34.2]} 22. Nb5 {[%clk 0:01:43.7]} 22...
Kg7 {[%clk 0:01:02.4]} 23. Kg2 {[%clk 0:01:43.6]} 23... Nxb5 {[%clk 0:01:01]}
24. cxb5 {[%clk 0:01:39.3]} 24... Rf7 {[%clk 0:00:58.3]} 25. Rc3 {[%clk
0:01:35.1]} 25... Ng8 {[%clk 0:00:58.9]} 26. Qc2 {[%clk 0:01:30.8]} 26... Nf6
{[%clk 0:00:59.1]} 27. Be2 {[%clk 0:01:28.1]} 27... Ra7 {[%clk 0:00:56.8]} 28.
h4 {[%clk 0:01:23.8]} 28... Nd7 {[%clk 0:00:56.2]} 29. Rxf7+ {[%clk 0:01:19.9]}
29... Kxf7 {[%clk 0:00:57.3]} 30. Bg4 {[%clk 0:01:20.6]} 30... Nc5 {[%clk
0:00:51.2]} 31. Rf3+ {[%clk 0:01:17.9]} 31... Kg7 {[%clk 0:00:49.9]} 32. Bxc5
{[%clk 0:01:15.6]} 32... bxc5 {[%clk 0:00:42.4]} 33. Be6 {[%clk 0:01:17.5]}
33... Ra8 {[%clk 0:00:41.7]} 34. Rf7+ {[%clk 0:01:10.5]} 34... Kh8 {[%clk
0:00:41.8]} 35. Rd7 {[%clk 0:01:02.9]} 35... Qf8 {[%clk 0:00:34.9]} 36. Rxc7
{[%clk 0:01:01.9]} 36... Be3 {[%clk 0:00:35.7]} 37. b6 {[%clk 0:00:54.8]} 37...
Rb8 {[%clk 0:00:20.9]} 38. b7 {[%clk 0:00:53.9]} 1-0

[Event "*** Titled Tuesday Blitz"]
[Site "Chess.com"]
[Date "2018.04.03"]
[Round "4"]
[White "severomorskij"]
[Black "Doraemon7"]
[Result "1-0"]
[WhiteElo "2674"]
[BlackElo "2437"]
[TimeControl "180+2"]
[EndTime "13:50:58 PDT"]
[Termination "severomorskij won by checkmate"]

1. d4 {[%clk 0:03:01.9]} 1... d5 {[%clk 0:02:59.6]} 2. c4 {[%clk 0:03:02.5]}
2... c6 {[%clk 0:03:00.8]} 3. Nc3 {[%clk 0:03:04]} 3... Nf6 {[%clk 0:03:01.4]}
4. Nf3 {[%clk 0:03:05.4]} 4... e6 {[%clk 0:03:02.8]} 5. Bg5 {[%clk 0:03:06.1]}
5... dxc4 {[%clk 0:03:04.2]} 6. a4 {[%clk 0:03:04.9]} 6... Bb4 {[%clk
0:03:03.5]} 7. e4 {[%clk 0:03:03.3]} 7... Bxc3+ {[%clk 0:02:52.8]} 8. bxc3
{[%clk 0:03:02.9]} 8... Qa5 {[%clk 0:02:54.3]} 9. e5 {[%clk 0:02:51.5]} 9... Ne4
{[%clk 0:02:48.5]} 10. Rc1 {[%clk 0:02:39.1]} 10... Qd5 {[%clk 0:02:31.5]} 11.
Be3 {[%clk 0:02:37.1]} 11... b5 {[%clk 0:02:21.3]} 12. Qc2 {[%clk 0:02:35.3]}
12... Bb7 {[%clk 0:02:12.3]} 13. Be2 {[%clk 0:02:32.4]} 13... Nd7 {[%clk
0:02:05.9]} 14. O-O {[%clk 0:02:33.1]} 14... a6 {[%clk 0:01:57.8]} 15. Ne1
{[%clk 0:02:24.4]} 15... f6 {[%clk 0:01:32]} 16. f3 {[%clk 0:02:11]} 16... Ng5
{[%clk 0:01:32.5]} 17. Bxg5 {[%clk 0:02:06]} 17... fxg5 {[%clk 0:01:34.4]} 18.
f4 {[%clk 0:02:07.3]} 18... Nb6 {[%clk 0:01:20.7]} 19. fxg5 {[%clk 0:01:37.1]}
19... O-O-O {[%clk 0:00:52.9]} 20. a5 {[%clk 0:01:35.8]} 20... Na8 {[%clk
0:00:52.3]} 21. Rf7 {[%clk 0:01:35.9]} 21... Rd7 {[%clk 0:00:51.8]} 22. Bf3
{[%clk 0:01:31.6]} 22... Rxf7 {[%clk 0:00:34.8]} 23. Bxd5 {[%clk 0:01:31.4]}
23... cxd5 {[%clk 0:00:35.7]} 24. g6 {[%clk 0:01:32.3]} 24... hxg6 {[%clk
0:00:27.6]} 25. Qxg6 {[%clk 0:01:32.1]} 25... Re7 {[%clk 0:00:23.1]} 26. Nc2
{[%clk 0:01:31.4]} 26... Kd7 {[%clk 0:00:23.6]} 27. Rf1 {[%clk 0:01:29.3]} 27...
Nc7 {[%clk 0:00:22.3]} 28. Nb4 {[%clk 0:01:29.3]} 28... Rh6 {[%clk 0:00:21]} 29.
Qg5 {[%clk 0:01:25.3]} 29... Ne8 {[%clk 0:00:19.3]} 30. h4 {[%clk 0:01:24.4]}
30... Rh8 {[%clk 0:00:19.3]} 31. g4 {[%clk 0:01:24.1]} 31... Rg8 {[%clk
0:00:19.8]} 32. h5 {[%clk 0:01:24.6]} 32... Rh8 {[%clk 0:00:20.8]} 33. Kg2
{[%clk 0:01:25]} 33... Nc7 {[%clk 0:00:21.6]} 34. Kg3 {[%clk 0:01:25.6]} 34...
Ne8 {[%clk 0:00:22.9]} 35. Qf4 {[%clk 0:01:16.4]} 35... Nc7 {[%clk 0:00:22.8]}
36. Qf3 {[%clk 0:01:16.3]} 36... Ke8 {[%clk 0:00:22.3]} 37. g5 {[%clk
0:01:16.3]} 37... Rg8 {[%clk 0:00:21.5]} 38. g6 {[%clk 0:01:08.2]} 38... Rh8
{[%clk 0:00:22.3]} 39. Kg4 {[%clk 0:01:06.6]} 39... Kd7 {[%clk 0:00:22.5]} 40.
Kg5 {[%clk 0:01:07.2]} 40... Ne8 {[%clk 0:00:23.4]} 41. Qg4 {[%clk 0:01:06]}
41... Bc8 {[%clk 0:00:23.3]} 42. Rf7 {[%clk 0:01:05]} 42... Bb7 {[%clk
0:00:22.6]} 43. Qf4 {[%clk 0:01:02.1]} 43... Bc8 {[%clk 0:00:12.3]} 44. Rxe7+
{[%clk 0:01:02.9]} 44... Kxe7 {[%clk 0:00:14.2]} 45. Qf7+ {[%clk 0:01:04.1]}
45... Kd8 {[%clk 0:00:16.1]} 46. Nc6# {[%clk 0:01:05.3]} 1-0

[Event "*** Titled Tuesday Blitz"]
[Site "Chess.com"]
[Date "2018.04.03"]
[Round "4"]
[White "andante"]
[Black "Mikhail_Golubev"]
[Result "1-0"]
[WhiteElo "2191"]
[BlackElo "2219"]
[TimeControl "180+2"]
[EndTime "13:50:58 PDT"]
[Termination "andante won on time"]

1. d4 {[%clk 0:02:59.8]} 1... Nf6 {[%clk 0:02:35.6]} 2. Nf3 {[%clk 0:03:00.2]}
2... d6 {[%clk 0:02:35.1]} 3. Nc3 {[%clk 0:02:55.5]} 3... Bg4 {[%clk 0:02:32.9]}
4. e4 {[%clk 0:02:54]} 4... e6 {[%clk 0:02:33.7]} 5. Be2 {[%clk 0:02:54.6]} 5...
d5 {[%clk 0:02:29.8]} 6. Bg5 {[%clk 0:02:45.6]} 6... Bb4 {[%clk 0:02:12.6]} 7.
e5 {[%clk 0:02:34.3]} 7... h6 {[%clk 0:02:09.1]} 8. Bh4 {[%clk 0:02:24.8]} 8...
g5 {[%clk 0:02:09.4]} 9. Nxg5 {[%clk 0:02:25]} 9... Bxe2 {[%clk 0:01:36]} 10.
Qxe2 {[%clk 0:02:08.9]} 10... hxg5 {[%clk 0:01:18.2]} 11. Bxg5 {[%clk
0:02:07.6]} 11... Nbd7 {[%clk 0:01:18.7]} 12. O-O-O {[%clk 0:01:58.1]} 12...
Bxc3 {[%clk 0:01:13.7]} 13. bxc3 {[%clk 0:01:58.1]} 13... Qe7 {[%clk 0:01:14.4]}
14. Kb2 {[%clk 0:01:51.9]} 14... Nb6 {[%clk 0:01:13.1]} 15. Bxf6 {[%clk
0:01:44.4]} 15... Na4+ {[%clk 0:00:50.5]} 16. Ka1 {[%clk 0:01:41.7]} 16... Qd7
{[%clk 0:00:30.7]} 17. Bxh8 {[%clk 0:01:23.8]} 17... Qc6 {[%clk 0:00:22.5]} 18.
Qd3 {[%clk 0:01:16]} 18... b5 {[%clk 0:00:20.8]} 19. Rb1 {[%clk 0:01:03.7]}
19... Rb8 {[%clk 0:00:18.2]} 20. Rb3 {[%clk 0:01:00.3]} 20... a5 {[%clk
0:00:19]} 21. Bf6 {[%clk 0:00:59.5]} 21... b4 {[%clk 0:00:16.6]} 22. Rhb1 {[%clk
0:00:51.9]} 22... Kd7 {[%clk 0:00:12.6]} 23. cxb4 {[%clk 0:00:48.4]} 23... axb4
{[%clk 0:00:12.9]} 24. Rxb4 {[%clk 0:00:42]} 24... Ra8 {[%clk 0:00:12]} 25. c4
{[%clk 0:00:40.4]} 25... Qa6 {[%clk 0:00:11.2]} 26. Qa3 {[%clk 0:00:33.5]} 26...
dxc4 {[%clk 0:00:10]} 27. Rb8 {[%clk 0:00:32.4]} 27... Rxb8 {[%clk 0:00:04.9]}
28. Rxb8 {[%clk 0:00:28.5]} 28... c3 {[%clk 0:00:05.5]} 29. Qe7+ {[%clk
0:00:25.5]} 29... Kc6 {[%clk 0:00:06]} 30. Qe8+ {[%clk 0:00:25.3]} 30... Kd5
{[%clk 0:00:06.4]} 31. Qd7+ {[%clk 0:00:20.9]} 31... Ke4 {[%clk 0:00:06.8]} 32.
Qxc7 {[%clk 0:00:19.4]} 1-0

[Event "*** Titled Tuesday Blitz"]
[Site "Chess.com"]
[Date "2018.04.03"]
[Round "4"]
[White "FMAntonio"]
[Black "ckgchess"]
[Result "0-1"]
[WhiteElo "2375"]
[BlackElo "2518"]
[TimeControl "180+2"]
[EndTime "13:51:01 PDT"]
[Termination "ckgchess won by resignation"]

1. d4 {[%clk 0:03:01.9]} 1... Nf6 {[%clk 0:02:59.4]} 2. c4 {[%clk 0:03:02.6]}
2... g6 {[%clk 0:02:49.9]} 3. Nc3 {[%clk 0:03:03.2]} 3... Bg7 {[%clk 0:02:51]}
4. e4 {[%clk 0:03:04.2]} 4... d6 {[%clk 0:02:52.6]} 5. Be2 {[%clk 0:03:05.4]}
5... O-O {[%clk 0:02:53.8]} 6. Be3 {[%clk 0:03:06.6]} 6... c5 {[%clk 0:02:54.6]}
7. d5 {[%clk 0:03:06.7]} 7... e6 {[%clk 0:02:55.8]} 8. Nf3 {[%clk 0:03:07.5]}
8... Re8 {[%clk 0:02:57.1]} 9. O-O {[%clk 0:03:07.6]} 9... exd5 {[%clk
0:02:56.6]} 10. exd5 {[%clk 0:03:08.7]} 10... Bg4 {[%clk 0:02:52.9]} 11. h3
{[%clk 0:03:07.4]} 11... Bxf3 {[%clk 0:02:53.8]} 12. Bxf3 {[%clk 0:03:09.3]}
12... Na6 {[%clk 0:02:39.8]} 13. Qd2 {[%clk 0:03:08]} 13... Nc7 {[%clk 0:02:38]}
14. Rfe1 {[%clk 0:03:06.6]} 14... Rb8 {[%clk 0:02:27.1]} 15. a4 {[%clk
0:03:06.5]} 15... b6 {[%clk 0:02:26.5]} 16. Bf4 {[%clk 0:03:04.6]} 16... Qd7
{[%clk 0:02:16.3]} 17. Rxe8+ {[%clk 0:03:03.9]} 17... Rxe8 {[%clk 0:02:14.8]}
18. Re1 {[%clk 0:03:04.8]} 18... a6 {[%clk 0:02:04.1]} 19. g4 {[%clk 0:02:45.7]}
19... b5 {[%clk 0:01:35.3]} 20. axb5 {[%clk 0:02:46]} 20... axb5 {[%clk
0:01:36.4]} 21. cxb5 {[%clk 0:02:46.8]} 21... Nxb5 {[%clk 0:01:24]} 22. Nxb5
{[%clk 0:02:47.1]} 22... Qxb5 {[%clk 0:01:25.9]} 23. Bxd6 {[%clk 0:02:41.6]}
23... Rd8 {[%clk 0:00:26]} 24. Bc7 {[%clk 0:02:24]} 24... Rd7 {[%clk 0:00:22.3]}
25. Bf4 {[%clk 0:02:24.3]} 25... c4 {[%clk 0:00:19.4]} 26. d6 {[%clk 0:02:22.7]}
26... Bf8 {[%clk 0:00:19]} 27. g5 {[%clk 0:02:14.9]} 27... Nh5 {[%clk
0:00:16.8]} 28. Bxh5 {[%clk 0:02:06]} 28... gxh5 {[%clk 0:00:18.7]} 29. Re8
{[%clk 0:02:05.4]} 29... Ra7 {[%clk 0:00:06.2]} 30. g6 {[%clk 0:01:46.1]} 30...
Qxe8 {[%clk 0:00:04.8]} 31. gxh7+ {[%clk 0:01:36.3]} 31... Kxh7 {[%clk
0:00:06.7]} 32. Qc2+ {[%clk 0:01:37.6]} 32... f5 {[%clk 0:00:08]} 33. Kh2 {[%clk
0:01:31]} 33... Qe6 {[%clk 0:00:07.3]} 34. Qd1 {[%clk 0:01:28.4]} 34... Qf7
{[%clk 0:00:04.2]} 35. Qd4 {[%clk 0:01:15]} 35... Rd7 {[%clk 0:00:04.6]} 36. Qe5
{[%clk 0:01:16.3]} 36... Qg6 {[%clk 0:00:04.2]} 37. Qb5 {[%clk 0:01:11.1]} 37...
Qe6 {[%clk 0:00:05.1]} 38. Qc6 {[%clk 0:01:03.9]} 38... Bxd6 {[%clk 0:00:05.6]}
39. Kg2 {[%clk 0:01:02.7]} 39... Qe4+ {[%clk 0:00:05.5]} 40. Qxe4 {[%clk
0:01:03]} 40... fxe4 {[%clk 0:00:07.4]} 41. Be3 {[%clk 0:01:04.9]} 41... Be5
{[%clk 0:00:08.7]} 0-1

[Event "*** Titled Tuesday Blitz"]
[Site "Chess.com"]
[Date "2018.04.03"]
[Round "4"]
[White "51616516516"]
[Black "Bad4life"]
[Result "0-1"]
[WhiteElo "2128"]
[BlackElo "2390"]
[TimeControl "180+2"]
[EndTime "13:51:01 PDT"]
[Termination "Bad4life won on time"]

1. d4 {[%clk 0:02:58.4]} 1... Nf6 {[%clk 0:03:00.8]} 2. c4 {[%clk 0:02:59]} 2...
c5 {[%clk 0:03:02.3]} 3. Nf3 {[%clk 0:02:59.1]} 3... e6 {[%clk 0:03:02.8]} 4. g3
{[%clk 0:02:54.4]} 4... cxd4 {[%clk 0:03:03.9]} 5. Nxd4 {[%clk 0:02:55.6]} 5...
Nc6 {[%clk 0:03:05.3]} 6. Bg2 {[%clk 0:02:55.9]} 6... Bb4+ {[%clk 0:03:06.1]} 7.
Bd2 {[%clk 0:02:53.2]} 7... Bc5 {[%clk 0:02:59.9]} 8. Nb3 {[%clk 0:02:47]} 8...
Be7 {[%clk 0:02:57.9]} 9. O-O {[%clk 0:02:48.3]} 9... O-O {[%clk 0:02:58.9]} 10.
c5 {[%clk 0:02:45.1]} 10... a5 {[%clk 0:02:59.7]} 11. a4 {[%clk 0:02:45]} 11...
Nb4 {[%clk 0:03:00.4]} 12. Bxb4 {[%clk 0:02:40.2]} 12... axb4 {[%clk 0:03:01.3]}
13. a5 {[%clk 0:02:42.1]} 13... Qc7 {[%clk 0:03:00.1]} 14. Qd4 {[%clk
0:02:29.5]} 14... Ra6 {[%clk 0:02:49.8]} 15. Qxb4 {[%clk 0:02:23.4]} 15... Qd8
{[%clk 0:02:49.3]} 16. Bxb7 {[%clk 0:02:19.9]} 16... Nd5 {[%clk 0:02:37.2]} 17.
Qc4 {[%clk 0:02:02.7]} 17... Bxb7 {[%clk 0:02:36.5]} 18. e4 {[%clk 0:01:06.1]}
18... Nf6 {[%clk 0:02:33.3]} 19. Nc3 {[%clk 0:01:07.3]} 19... Ng4 {[%clk
0:02:29]} 20. Rfd1 {[%clk 0:01:02.5]} 20... h5 {[%clk 0:02:26.8]} 21. c6 {[%clk
0:00:59.1]} 21... Ne5 {[%clk 0:02:27.2]} 22. Qb5 {[%clk 0:00:54.4]} 22... Nf3+
{[%clk 0:01:52.9]} 23. Kg2 {[%clk 0:00:54.6]} 23... e5 {[%clk 0:01:04.7]} 24.
cxb7 {[%clk 0:00:29.9]} 24... Nh4+ {[%clk 0:00:56]} 25. gxh4 {[%clk 0:00:27.3]}
25... Rg6+ {[%clk 0:00:57]} 26. Kh1 {[%clk 0:00:21.4]} 26... Bxh4 {[%clk
0:00:49.5]} 27. Rg1 {[%clk 0:00:19.2]} 27... Qf6 {[%clk 0:00:44.8]} 28. Qe2
{[%clk 0:00:11.9]} 28... Bxf2 {[%clk 0:00:41.9]} 29. Rxg6 {[%clk 0:00:10.9]}
29... fxg6 {[%clk 0:00:43.2]} 30. a6 {[%clk 0:00:11.7]} 30... Ba7 {[%clk
0:00:36.3]} 31. Nd5 {[%clk 0:00:09.5]} 31... Qh4 {[%clk 0:00:35.8]} 32. Rf1
{[%clk 0:00:03.6]} 32... Rxf1+ {[%clk 0:00:32.4]} 33. Qxf1 {[%clk 0:00:05.5]}
33... Qxe4+ {[%clk 0:00:33.5]} 34. Qg2 {[%clk 0:00:04.5]} 34... Qe1+ {[%clk
0:00:34.6]} 0-1

[Event "*** Titled Tuesday Blitz"]
[Site "Chess.com"]
[Date "2018.04.03"]
[Round "4"]
[White "Princec7"]
[Black "VerdeNotte"]
[Result "0-1"]
[WhiteElo "2424"]
[BlackElo "2643"]
[TimeControl "180+2"]
[EndTime "13:51:12 PDT"]
[Termination "VerdeNotte won by resignation"]

1. e4 {[%clk 0:02:58.3]} 1... d6 {[%clk 0:03:00.3]} 2. d4 {[%clk 0:02:58.7]}
2... Nf6 {[%clk 0:02:59]} 3. Nc3 {[%clk 0:03:00]} 3... g6 {[%clk 0:03:00]} 4.
Nf3 {[%clk 0:03:00.7]} 4... Bg7 {[%clk 0:03:00.7]} 5. Be2 {[%clk 0:03:01.3]}
5... O-O {[%clk 0:03:01.8]} 6. O-O {[%clk 0:03:02.8]} 6... e6 {[%clk 0:03:03.3]}
7. h3 {[%clk 0:02:56.9]} 7... b6 {[%clk 0:03:01.3]} 8. Re1 {[%clk 0:02:51.4]}
8... Bb7 {[%clk 0:03:02.1]} 9. Bf1 {[%clk 0:02:50.4]} 9... Nc6 {[%clk
0:03:01.8]} 10. Be3 {[%clk 0:02:32.6]} 10... Re8 {[%clk 0:02:42.7]} 11. Qd2
{[%clk 0:02:26.6]} 11... Ne7 {[%clk 0:02:38]} 12. Bh6 {[%clk 0:02:22.6]} 12...
Bh8 {[%clk 0:02:32.8]} 13. Rad1 {[%clk 0:02:15.3]} 13... a6 {[%clk 0:02:32.5]}
14. a4 {[%clk 0:02:12.2]} 14... d5 {[%clk 0:02:16.9]} 15. e5 {[%clk 0:01:51.2]}
15... Ne4 {[%clk 0:02:17.6]} 16. Nxe4 {[%clk 0:01:46.7]} 16... dxe4 {[%clk
0:02:19.5]} 17. Ng5 {[%clk 0:01:48.1]} 17... e3 {[%clk 0:02:20.1]} 18. fxe3
{[%clk 0:01:00.4]} 18... Nf5 {[%clk 0:02:19.7]} 19. e4 {[%clk 0:00:57.5]} 19...
Nxh6 {[%clk 0:02:20]} 20. Bc4 {[%clk 0:00:54.6]} 20... Bg7 {[%clk 0:02:14.4]}
21. Qf4 {[%clk 0:00:49.8]} 21... Qe7 {[%clk 0:02:12.1]} 22. c3 {[%clk
0:00:47.9]} 22... c5 {[%clk 0:02:06.5]} 23. d5 {[%clk 0:00:32.1]} 23... exd5
{[%clk 0:02:05.8]} 24. exd5 {[%clk 0:00:34]} 24... Bxe5 {[%clk 0:02:06.5]} 25.
Qh4 {[%clk 0:00:35]} 25... Qf8 {[%clk 0:01:52.1]} 26. d6 {[%clk 0:00:33.1]}
26... Bf6 {[%clk 0:01:44.7]} 27. Qf4 {[%clk 0:00:20.3]} 27... Rxe1+ {[%clk
0:01:36.5]} 28. Rxe1 {[%clk 0:00:21]} 28... Bxg5 {[%clk 0:00:56.3]} 29. Qxg5
{[%clk 0:00:22.9]} 29... Rd8 {[%clk 0:00:52.4]} 30. Rd1 {[%clk 0:00:16.6]} 30...
Nf5 {[%clk 0:00:39.1]} 31. d7 {[%clk 0:00:17]} 31... Qe7 {[%clk 0:00:38.7]} 32.
Qf4 {[%clk 0:00:08.8]} 32... Rxd7 {[%clk 0:00:31.9]} 33. Qb8+ {[%clk 0:00:09.6]}
33... Kg7 {[%clk 0:00:32.2]} 34. Rxd7 {[%clk 0:00:10.2]} 34... Qxd7 {[%clk
0:00:32.5]} 35. Qe5+ {[%clk 0:00:11.2]} 35... f6 {[%clk 0:00:22.5]} 0-1